fUSD/lending_fUSD_20250215
["ID","MTS","AMOUNT","RATE_DAILY","PERIOD"]
[353194234,1739640649948,-500.0,0.00011616,2]
[353194235,1739640649958,-150.0,0.00011625,2]
[353194236,1739640649968,-10133.62755885,0.00011626,2]
[353194237,1739640649978,-571.48,0.00011628,2]
[353194238,1739640649990,-512.53,0.00011628,2]
[353194239,1739640650000,-500.0,0.00011628,2]
[353194240,1739640650011,-500.0,0.00011628,2]
[353194241,1739640650022,-844.08,0.00011628,2]
[353194242,1739640650032,-678.77,0.00011628,2]
[353194243,1739640650042,-578.69,0.00011628,2]
[353194244,1739640650052,-836.8,0.00011628,2]
[353194245,1739640650063,-502.58,0.00011628,2]
[353194246,1739640650073,-500.0,0.00011628,2]
[353194247,1739640650084,-830.02,0.00011628,2]
[353194248,1739640650093,-932.26,0.00011628,2]
[353194249,1739640650103,-651.91,0.00011628,2]
[353194250,1739640650115,-521.69,0.00011628,2]
[353194251,1739640650125,-500.0,0.00011628,2]
[353194252,1739640650138,-2314.63,0.00011628,2]
[353194253,1739640650148,-500.0,0.00011628,2]
[353194254,1739640650158,-500.0,0.00011628,2]
[353194255,1739640650168,-500.0,0.00011628,2]
[353194256,1739640650179,-192.71736298,0.00011628,2]
[353194257,1739640650188,-1694.07,0.00011628,2]
[353194258,1739640650198,-500.0,0.00011628,2]
[353194259,1739640650207,-805.43,0.00011628,2]
[353194260,1739640650217,-553.77,0.00011628,2]
[353194261,1739640650228,-150.0,0.00011647,2]
[353194262,1739640650242,-150.0,0.00011649,2]
[353194263,1739640650251,-150.0,0.00011655,2]
[353194264,1739640650261,-150.0,0.00011657,2]
[353194265,1739640650270,-150.0,0.00011667,2]
[353194266,1739640650279,-150.0,0.00011669,2]
[353194267,1739640650289,-150.0,0.0001167,2]
[353194268,1739640650298,-300.0,0.0001167,2]
[353194269,1739640650307,-150.0,0.00011673,2]
[353194270,1739640650316,-1009.12802594,0.0001168,2]
[353194271,1739640650325,-150.0,0.0001168,2]
[353194272,1739640650334,-150.0,0.00011681,2]
[353194273,1739640650343,-150.0,0.00011685,2]
[353194274,1739640650352,-202.73622945,0.00011688,2]
[353194275,1739640650362,-150.0,0.0001169,2]
[353194276,1739640650371,-150.0,0.0001169,2]
[353194277,1739640650382,-150.0,0.00011692,2]
[353194278,1739640650391,-150.0,0.00011694,2]
[353194279,1739640650401,-150.0,0.00011694,2]
[353194280,1739640650410,-150.0,0.00011695,2]
[353194281,1739640650419,-661.5,0.00011696,2]
[353194282,1739640650429,-522.73,0.00011696,2]
[353194283,1739640650438,-500.0,0.00011696,2]
[353194284,1739640650448,-500.0,0.00011696,2]
[353194285,1739640650457,-500.0,0.00011696,2]
[353194286,1739640650467,-500.0,0.00011696,2]
[353194287,1739640650477,-500.0,0.00011696,2]
[353194288,1739640650489,-500.0,0.00011696,2]
[353194289,1739640650499,-500.0,0.00011696,2]
[353194290,1739640650508,-500.0,0.00011696,2]
[353194291,1739640650518,-500.0,0.00011696,2]
[353194292,1739640650529,-500.0,0.00011696,2]
[353194293,1739640650539,-500.0,0.00011696,2]
[353194294,1739640650548,-500.0,0.00011696,2]
[353194295,1739640650558,-500.0,0.00011696,2]
[353194296,1739640650568,-500.0,0.00011696,2]
[353194297,1739640650577,-500.0,0.00011696,2]
[353194298,1739640650587,-500.0,0.00011696,2]
[353194299,1739640650597,-500.0,0.00011696,2]
[353194300,1739640650606,-1073.26,0.00011696,2]
[353194301,1739640650616,-702.58,0.00011696,2]
[353194302,1739640650626,-500.0,0.00011696,2]
[353194303,1739640650636,-749.99,0.00011696,2]
[353194304,1739640650646,-500.0,0.00011696,2]
[353194305,1739640650655,-500.0,0.00011696,2]
[353194306,1739640650666,-500.0,0.00011696,2]
[353194307,1739640650676,-180.896505,0.00011696,2]
[353194308,1739640650686,-500.0,0.00011696,2]
[353194309,1739640650696,-500.0,0.00011696,2]
[353194310,1739640650706,-500.0,0.00011696,2]
[353194311,1739640650715,-557.75,0.00011696,2]
[353194312,1739640650725,-826.89,0.00011696,2]
[353194313,1739640650736,-364.085208,0.00011696,2]
[353194314,1739640650745,-500.0,0.00011696,2]
[353194315,1739640650755,-551.39,0.00011696,2]
[353194316,1739640650765,-758.76,0.00011696,2]
[353194317,1739640650775,-574.22,0.00011696,2]
[353194318,1739640650785,-500.0,0.00011696,2]
[353194319,1739640650794,-500.0,0.00011696,2]
[353194320,1739640650804,-664.12,0.00011696,2]
[353194321,1739640650814,-647.76,0.00011696,2]
[353194322,1739640650823,-500.0,0.00011696,2]
[353194323,1739640650833,-679.9,0.00011696,2]
[353194324,1739640650842,-500.0,0.00011696,2]
[353194325,1739640650852,-500.0,0.00011696,2]
[353194326,1739640650862,-500.0,0.00011696,2]
[353194327,1739640650871,-1774.1,0.00011696,2]
[353194328,1739640650881,-500.0,0.00011696,2]
[353194329,1739640650891,-500.0,0.00011696,2]
[353194330,1739640650900,-500.0,0.00011696,2]
[353194331,1739640650910,-567.85,0.00011696,2]
[353194332,1739640650919,-536.13,0.00011696,2]
[353194333,1739640650929,-500.0,0.00011696,2]
[353194334,1739640650939,-810.11,0.00011696,2]
[353194335,1739640650948,-500.0,0.00011696,2]
[353194336,1739640650958,-1032.21,0.00011696,2]
[353194337,1739640650968,-500.0,0.00011696,2]
[353194338,1739640650977,-1501.05,0.00011696,2]
[353194339,1739640650988,-500.0,0.00011696,2]
[353194340,1739640650998,-644.12,0.00011696,2]
[353194341,1739640651008,-500.0,0.00011696,2]
[353194342,1739640651017,-500.0,0.00011696,2]
[353194343,1739640651027,-701.46,0.00011696,2]
[353194344,1739640651036,-917.15,0.00011696,2]
[353194345,1739640651045,-500.0,0.00011696,2]
[353194346,1739640651055,-506.75,0.00011696,2]
[353194347,1739640651064,-845.55,0.00011696,2]
[353194348,1739640651073,-500.0,0.00011696,2]
[353194349,1739640651082,-500.0,0.00011696,2]
[353194350,1739640651092,-893.05,0.00011696,2]
[353194351,1739640651101,-500.0,0.00011696,2]
[353194352,1739640651111,-500.0,0.00011696,2]
[353194353,1739640651120,-1077.49,0.00011696,2]
[353194354,1739640651130,-500.0,0.00011696,2]
[353194355,1739640651139,-625.32,0.00011696,2]
[353194356,1739640651151,-500.0,0.00011696,2]
[353194357,1739640651161,-500.0,0.00011696,2]
[353194358,1739640651171,-500.0,0.00011696,2]
[353194359,1739640651180,-500.0,0.00011696,2]
[353194360,1739640651190,-500.0,0.00011696,2]
[353194361,1739640651199,-833.02,0.00011696,2]
[353194362,1739640651209,-629.24,0.00011696,2]
[353194363,1739640651220,-1985.97,0.00011696,2]
[353194364,1739640651230,-500.0,0.00011698,2]
[353194365,1739640651239,-500.0,0.00011698,2]
[353194366,1739640651250,-150.0,0.00011698,2]
[353194367,1739640651259,-500.0,0.00011698,2]
[353194368,1739640651269,-500.0,0.00011698,2]
[353194369,1739640651278,-500.0,0.00011698,2]
[353194370,1739640651288,-500.0,0.00011698,2]
[353194371,1739640651297,-738.52,0.00011698,2]
[353194372,1739640651307,-500.0,0.00011698,2]
[353194373,1739640651316,-500.0,0.00011698,2]
[353194374,1739640651326,-500.0,0.00011698,2]
[353194375,1739640651335,-500.0,0.00011698,2]
[353194376,1739640651345,-500.0,0.00011698,2]
[353194377,1739640651355,-500.0,0.00011698,2]
[353194378,1739640651364,-500.0,0.00011698,2]
[353194379,1739640651374,-150.0,0.00011699,2]
[353194380,1739640651383,-150.0,0.00011702,2]
[353194381,1739640651393,-150.0,0.00011702,2]
[353194382,1739640651403,-3069.78032547,0.00011704,2]
[353194383,1739640651413,-150.0,0.00011704,2]
[353194384,1739640651423,-150.0,0.00011706,2]
[353194385,1739640651433,-571.48,0.0001171,2]
[353194386,1739640651443,-512.53,0.0001171,2]
[353194387,1739640651453,-500.0,0.0001171,2]
[353194388,1739640651463,-500.0,0.0001171,2]
[353194389,1739640651472,-844.08,0.0001171,2]
[353194390,1739640651482,-678.77,0.0001171,2]
[353194391,1739640651492,-578.69,0.0001171,2]
[353194392,1739640651502,-836.8,0.0001171,2]
[353194393,1739640651511,-502.58,0.0001171,2]
[353194394,1739640651522,-500.0,0.0001171,2]
[353194395,1739640651531,-830.02,0.0001171,2]
[353194396,1739640651541,-932.26,0.0001171,2]
[353194397,1739640651551,-651.91,0.0001171,2]
[353194398,1739640651560,-521.69,0.0001171,2]
[353194399,1739640651570,-500.0,0.0001171,2]
[353194400,1739640651579,-2314.63,0.0001171,2]
[353194401,1739640651589,-500.0,0.0001171,2]
[353194402,1739640651599,-500.0,0.0001171,2]
[353194403,1739640651608,-500.0,0.0001171,2]
[353194404,1739640651618,-1694.07,0.0001171,2]
[353194405,1739640651627,-500.0,0.0001171,2]
[353194406,1739640651636,-805.43,0.0001171,2]
[353194407,1739640651646,-553.77,0.0001171,2]
[353194408,1739640651655,-150.0,0.00011726,2]
[353194409,1739640651665,-150.0,0.00011727,2]
[353194410,1739640651675,-150.0,0.00011738,2]
[353194411,1739640651685,-150.0,0.00011759,2]
[353194412,1739640651694,-150.0,0.00011762,2]
[353194413,1739640651704,-1723.0,0.00011763,2]
[353194414,1739640651713,-150.0,0.00011763,2]
[353194415,1739640651722,-150.0,0.00011763,2]
[353194416,1739640651733,-150.0,0.00011763,2]
[353194417,1739640651742,-150.0,0.00011766,2]
[353194418,1739640651751,-150.0,0.0001177,2]
[353194419,1739640651760,-150.0,0.00011772,2]
[353194420,1739640651769,-150.0,0.00011775,2]
[353194421,1739640651779,-150.0,0.00011777,2]
[353194422,1739640651788,-150.0,0.00011778,2]
[353194423,1739640651797,-661.5,0.00011779,2]
[353194424,1739640651806,-522.73,0.00011779,2]
[353194425,1739640651816,-500.0,0.00011779,2]
[353194426,1739640651825,-500.0,0.00011779,2]
[353194427,1739640651834,-500.0,0.00011779,2]
[353194428,1739640651843,-500.0,0.00011779,2]
[353194429,1739640651853,-500.0,0.00011779,2]
[353194430,1739640651862,-500.0,0.00011779,2]
[353194431,1739640651872,-500.0,0.00011779,2]
[353194432,1739640651881,-500.0,0.00011779,2]
[353194433,1739640651891,-500.0,0.00011779,2]
[353194434,1739640651900,-500.0,0.00011779,2]
[353194435,1739640651910,-500.0,0.00011779,2]
[353194436,1739640651919,-500.0,0.00011779,2]
[353194437,1739640651928,-500.0,0.00011779,2]
[353194438,1739640651938,-500.0,0.00011779,2]
[353194439,1739640651948,-500.0,0.00011779,2]
[353194440,1739640651957,-500.0,0.00011779,2]
[353194441,1739640651967,-344.87,0.00011779,2]
[353194442,1739640651977,-1073.26,0.00011779,2]
[353194443,1739640651988,-702.58,0.00011779,2]
[353194444,1739640651997,-500.0,0.00011779,2]
[353194445,1739640652007,-749.99,0.00011779,2]
[353194446,1739640652017,-500.0,0.00011779,2]
[353194447,1739640652026,-500.0,0.00011779,2]
[353194448,1739640652035,-500.0,0.00011779,2]
[353194449,1739640652045,-180.896505,0.00011779,2]
[353194450,1739640652054,-500.0,0.00011779,2]
[353194451,1739640652064,-500.0,0.00011779,2]
[353194452,1739640652073,-500.0,0.00011779,2]
[353194453,1739640652083,-557.75,0.00011779,2]
[353194454,1739640652092,-826.89,0.00011779,2]
[353194455,1739640652103,-364.085208,0.00011779,2]
[353194456,1739640652113,-500.0,0.00011779,2]
[353194457,1739640652123,-551.39,0.00011779,2]
[353194458,1739640652135,-758.76,0.00011779,2]
[353194459,1739640652146,-574.22,0.00011779,2]
[353194460,1739640652155,-500.0,0.00011779,2]
[353194461,1739640652165,-500.0,0.00011779,2]
[353194462,1739640652175,-664.12,0.00011779,2]
[353194463,1739640652184,-647.76,0.00011779,2]
[353194464,1739640652194,-500.0,0.00011779,2]
[353194465,1739640652203,-679.9,0.00011779,2]
[353194466,1739640652214,-500.0,0.00011779,2]
[353194467,1739640652224,-500.0,0.00011779,2]
[353194468,1739640652234,-500.0,0.00011779,2]
[353194469,1739640652245,-1774.1,0.00011779,2]
[353194470,1739640652254,-500.0,0.00011779,2]
[353194471,1739640652264,-500.0,0.00011779,2]
[353194472,1739640652274,-500.0,0.00011779,2]
[353194473,1739640652283,-567.85,0.00011779,2]
[353194474,1739640652293,-536.13,0.00011779,2]
[353194475,1739640652303,-500.0,0.00011779,2]
[353194476,1739640652312,-810.11,0.00011779,2]
[353194477,1739640652322,-500.0,0.00011779,2]
[353194478,1739640652332,-1032.21,0.00011779,2]
[353194479,1739640652341,-500.0,0.00011779,2]
[353194480,1739640652351,-1501.05,0.00011779,2]
[353194481,1739640652361,-500.0,0.00011779,2]
[353194482,1739640652371,-644.12,0.00011779,2]
[353194483,1739640652381,-500.0,0.00011779,2]
[353194484,1739640652391,-500.0,0.00011779,2]
[353194485,1739640652401,-701.46,0.00011779,2]
[353194486,1739640652411,-917.15,0.00011779,2]
[353194487,1739640652421,-500.0,0.00011779,2]
[353194488,1739640652431,-506.75,0.00011779,2]
[353194489,1739640652441,-845.55,0.00011779,2]
[353194490,1739640652451,-500.0,0.00011779,2]
[353194491,1739640652461,-500.0,0.00011779,2]
[353194492,1739640652471,-893.05,0.00011779,2]
[353194493,1739640652482,-500.0,0.00011779,2]
[353194494,1739640652492,-500.0,0.00011779,2]
[353194495,1739640652502,-1077.49,0.00011779,2]
[353194496,1739640652511,-500.0,0.00011779,2]
[353194497,1739640652521,-625.32,0.00011779,2]
[353194498,1739640652533,-500.0,0.00011779,2]
[353194499,1739640652544,-500.0,0.00011779,2]
[353194500,1739640652553,-500.0,0.00011779,2]
[353194501,1739640652563,-500.0,0.00011779,2]
[353194502,1739640652572,-500.0,0.00011779,2]
[353194503,1739640652582,-833.02,0.00011779,2]
[353194504,1739640652592,-629.24,0.00011779,2]
[353194505,1739640652603,-1985.97,0.00011779,2]
[353194506,1739640652613,-150.0,0.0001178,2]
[353194507,1739640652623,-621.83,0.0001178,2]
[353194508,1739640652633,-500.0,0.0001178,2]
[353194509,1739640652644,-500.0,0.0001178,2]
[353194510,1739640652654,-500.0,0.0001178,2]
[353194511,1739640652665,-500.0,0.0001178,2]
[353194512,1739640652675,-500.0,0.0001178,2]
[353194513,1739640652686,-738.52,0.0001178,2]
[353194514,1739640652849,-500.0,0.0001178,2]
[353194515,1739640652859,-500.0,0.0001178,2]
[353194516,1739640652869,-500.0,0.0001178,2]
[353194517,1739640652879,-500.0,0.0001178,2]
[353194518,1739640652888,-500.0,0.0001178,2]
[353194519,1739640652898,-500.0,0.0001178,2]
[353194520,1739640652908,-500.0,0.0001178,2]
[353194521,1739640652918,-150.0,0.00011781,2]
[353194522,1739640652927,-150.0,0.00011784,2]
[353194523,1739640652936,-150.0,0.00011784,2]
[353194524,1739640652946,-150.0,0.00011785,2]
[353194525,1739640652956,-150.0,0.0001179,2]
[353194526,1739640652966,-474.68,0.00011792,2]
[353194527,1739640652975,-150.0,0.00011792,2]
[353194528,1739640652986,-571.48,0.00011792,2]
[353194529,1739640652996,-512.53,0.00011792,2]
[353194530,1739640653006,-500.0,0.00011792,2]
[353194531,1739640653015,-500.0,0.00011792,2]
[353194532,1739640653024,-844.08,0.00011792,2]
[353194533,1739640653034,-678.77,0.00011792,2]
[353194534,1739640653044,-578.69,0.00011792,2]
[353194535,1739640653053,-836.8,0.00011792,2]
[353194536,1739640653062,-502.58,0.00011792,2]
[353194537,1739640653071,-500.0,0.00011792,2]
[353194538,1739640653080,-830.02,0.00011792,2]
[353194539,1739640653089,-932.26,0.00011792,2]
[353194540,1739640653099,-651.91,0.00011792,2]
[353194541,1739640653108,-521.69,0.00011792,2]
[353194542,1739640653118,-500.0,0.00011792,2]
[353194543,1739640653128,-2314.63,0.00011792,2]
[353194544,1739640653137,-500.0,0.00011792,2]
[353194545,1739640653149,-500.0,0.00011792,2]
[353194546,1739640653158,-500.0,0.00011792,2]
[353194547,1739640653167,-1694.07,0.00011792,2]
[353194548,1739640653176,-500.0,0.00011792,2]
[353194549,1739640653187,-805.43,0.00011792,2]
[353194550,1739640653196,-553.77,0.00011792,2]
[353194551,1739640653205,-150.0,0.00011793,2]
[353194552,1739640653216,-150.0,0.00011796,2]
[353194553,1739640653225,-150.0,0.00011797,2]
[353194554,1739640653236,-150.0,0.00011801,2]
[353194555,1739640653245,-150.0,0.00011801,2]
[353194556,1739640653255,-150.0,0.00011804,2]
[353194557,1739640653263,-150.0,0.00011808,2]
[353194558,1739640653273,-150.0,0.00011809,2]
[353194559,1739640653283,-150.0,0.00011811,2]
[353194560,1739640653292,-1000.0,0.00011812,2]
[353194561,1739640653301,-150.0,0.00011813,2]
[353194562,1739640653311,-150.0,0.00011816,2]
[353194563,1739640653321,-150.0,0.00011816,2]
[353194564,1739640653330,-2063.17607,0.0001183,2]
[353194565,1739640653339,-150.0,0.00011832,2]
[353194566,1739640653348,-269.46424915,0.0001184,2]
[353194567,1739640653357,-150.0,0.0001184,2]
[353194568,1739640653367,-150.0,0.00011841,2]
[353194569,1739640653377,-426.89390675,0.00011844,2]
[353194570,1739640653386,-150.0,0.0001185,2]
[353194571,1739640653396,-150.0,0.00011853,2]
[353194572,1739640653406,-150.0,0.00011854,2]
[353194573,1739640653416,-661.5,0.00011861,2]
[353194574,1739640653426,-522.73,0.00011861,2]
[353194575,1739640653436,-500.0,0.00011861,2]
[353194576,1739640653446,-500.0,0.00011861,2]
[353194577,1739640653455,-500.0,0.00011861,2]
[353194578,1739640653465,-500.0,0.00011861,2]
[353194579,1739640653475,-500.0,0.00011861,2]
[353194580,1739640653484,-500.0,0.00011861,2]
[353194581,1739640653494,-500.0,0.00011861,2]
[353194582,1739640653503,-500.0,0.00011861,2]
[353194583,1739640653513,-500.0,0.00011861,2]
[353194584,1739640653522,-500.0,0.00011861,2]
[353194585,1739640653532,-500.0,0.00011861,2]
[353194586,1739640653541,-500.0,0.00011861,2]
[353194587,1739640653550,-500.0,0.00011861,2]
[353194588,1739640653559,-500.0,0.00011861,2]
[353194589,1739640653568,-500.0,0.00011861,2]
[353194590,1739640653578,-500.0,0.00011861,2]
[353194591,1739640653587,-1073.26,0.00011861,2]
[353194592,1739640653599,-702.58,0.00011861,2]
[353194593,1739640653608,-500.0,0.00011861,2]
[353194594,1739640653618,-749.99,0.00011861,2]
[353194595,1739640653627,-500.0,0.00011861,2]
[353194596,1739640653637,-500.0,0.00011861,2]
[353194597,1739640653646,-500.0,0.00011861,2]
[353194598,1739640653655,-180.896505,0.00011861,2]
[353194599,1739640653664,-500.0,0.00011861,2]
[353194600,1739640653674,-500.0,0.00011861,2]
[353194601,1739640653684,-500.0,0.00011861,2]
[353194602,1739640653694,-557.75,0.00011861,2]
[353194603,1739640653705,-826.89,0.00011861,2]
[353194604,1739640653714,-364.085208,0.00011861,2]
[353194605,1739640653725,-500.0,0.00011861,2]
[353194606,1739640653735,-551.39,0.00011861,2]
[353194607,1739640653748,-758.76,0.00011861,2]
[353194608,1739640653759,-574.22,0.00011861,2]
[353194609,1739640653769,-500.0,0.00011861,2]
[353194610,1739640653779,-500.0,0.00011861,2]
[353194611,1739640653790,-664.12,0.00011861,2]
[353194612,1739640653800,-647.76,0.00011861,2]
[353194613,1739640653810,-500.0,0.00011861,2]
[353194614,1739640653820,-679.9,0.00011861,2]
[353194615,1739640653830,-500.0,0.00011861,2]
[353194616,1739640653840,-500.0,0.00011861,2]
[353194617,1739640653849,-500.0,0.00011861,2]
[353194618,1739640653859,-1774.1,0.00011861,2]
[353194619,1739640653869,-500.0,0.00011861,2]
[353194620,1739640653878,-500.0,0.00011861,2]
[353194621,1739640653888,-500.0,0.00011861,2]
[353194622,1739640653898,-567.85,0.00011861,2]
[353194623,1739640653908,-536.13,0.00011861,2]
[353194624,1739640653918,-500.0,0.00011861,2]
[353194625,1739640653928,-810.11,0.00011861,2]
[353194626,1739640653937,-500.0,0.00011861,2]
[353194627,1739640653946,-1032.21,0.00011861,2]
[353194628,1739640653956,-500.0,0.00011861,2]
[353194629,1739640653965,-1501.05,0.00011861,2]
[353194630,1739640653975,-500.0,0.00011861,2]
[353194631,1739640653985,-644.12,0.00011861,2]
[353194632,1739640653995,-500.0,0.00011861,2]
[353194633,1739640654004,-500.0,0.00011861,2]
[353194634,1739640654014,-701.46,0.00011861,2]
[353194635,1739640654024,-917.15,0.00011861,2]
[353194636,1739640654033,-500.0,0.00011861,2]
[353194637,1739640654043,-506.75,0.00011861,2]
[353194638,1739640654052,-845.55,0.00011861,2]
[353194639,1739640654061,-500.0,0.00011861,2]
[353194640,1739640654070,-425.18362355,0.00011861,2]
[353194641,1739640654080,-893.05,0.00011861,2]
[353194642,1739640654090,-500.0,0.00011861,2]
[353194643,1739640654099,-500.0,0.00011861,2]
[353194644,1739640654109,-1077.49,0.00011861,2]
[353194645,1739640654118,-500.0,0.00011861,2]
[353194646,1739640654128,-625.32,0.00011861,2]
[353194647,1739640654140,-500.0,0.00011861,2]
[353194648,1739640654151,-500.0,0.00011861,2]
[353194649,1739640654160,-500.0,0.00011861,2]
[353194650,1739640654169,-500.0,0.00011861,2]
[353194651,1739640654179,-500.0,0.00011861,2]
[353194652,1739640654188,-833.02,0.00011861,2]
[353194653,1739640654198,-629.24,0.00011861,2]
[353194654,1739640654208,-1985.97,0.00011861,2]
[353194655,1739640654220,-500.0,0.00011862,2]
[353194656,1739640654230,-500.0,0.00011862,2]
[353194657,1739640654240,-500.0,0.00011862,2]
[353194658,1739640654249,-500.0,0.00011862,2]
[353194659,1739640654259,-500.0,0.00011862,2]
[353194660,1739640654269,-738.52,0.00011862,2]
[353194661,1739640654279,-500.0,0.00011862,2]
[353194662,1739640654289,-500.0,0.00011862,2]
[353194663,1739640654298,-500.0,0.00011862,2]
[353194664,1739640654308,-500.0,0.00011862,2]
[353194665,1739640654317,-500.0,0.00011862,2]
[353194666,1739640654327,-500.0,0.00011863,2]
[353194667,1739640654337,-500.0,0.00011863,2]
[353194668,1739640654346,-176.28048689,0.00011872,2]
[353194669,1739640654356,-150.0,0.00011874,2]
[353194670,1739640654366,-571.48,0.00011875,2]
[353194671,1739640654376,-150.0,0.00011875,2]
[353194672,1739640654387,-512.53,0.00011875,2]
[353194673,1739640654396,-500.0,0.00011875,2]
[353194674,1739640654406,-500.0,0.00011875,2]
[353194675,1739640654415,-844.08,0.00011875,2]
[353194676,1739640654425,-678.77,0.00011875,2]
[353194677,1739640654435,-578.69,0.00011875,2]
[353194678,1739640654444,-836.8,0.00011875,2]
[353194679,1739640654453,-502.58,0.00011875,2]
[353194680,1739640654462,-500.0,0.00011875,2]
[353194681,1739640654473,-830.02,0.00011875,2]
[353194682,1739640654484,-932.26,0.00011875,2]
[353194683,1739640654493,-651.91,0.00011875,2]
[353194684,1739640654503,-521.69,0.00011875,2]
[353194685,1739640654512,-500.0,0.00011875,2]
[353194686,1739640654522,-2314.63,0.00011875,2]
[353194687,1739640654531,-500.0,0.00011875,2]
[353194688,1739640654540,-500.0,0.00011875,2]
[353194689,1739640654550,-500.0,0.00011875,2]
[353194690,1739640654559,-1694.07,0.00011875,2]
[353194691,1739640654568,-500.0,0.00011875,2]
[353194692,1739640654577,-805.43,0.00011875,2]
[353194693,1739640654587,-553.77,0.00011875,2]
[353194694,1739640654596,-150.0,0.00011876,2]
[353194695,1739640654605,-150.0,0.0001188,2]
[353194696,1739640654614,-150.0,0.00011891,2]
[353194697,1739640654625,-150.0,0.00011898,2]
[353194698,1739640654634,-150.0,0.00011898,2]
[353194699,1739640654644,-150.0,0.00011901,2]
[353194700,1739640654653,-150.0,0.00011903,2]
[353194701,1739640654663,-1000.0,0.00011904,2]
[353194702,1739640654672,-150.0,0.00011906,2]
[353194703,1739640654682,-150.0,0.00011906,2]
[353194704,1739640654691,-150.0,0.00011912,2]
[353194705,1739640654700,-500.0,0.00011912,2]
[353194706,1739640654710,-455.03294665,0.00011916,2]
[353194707,1739640654720,-191.1873034,0.00011935,2]
[353194708,1739640654730,-1649.0971297,0.00011937,2]
[353194709,1739640654740,-1000.0,0.0001194,2]
[353194710,1739640654749,-661.5,0.00011943,2]
[353194711,1739640654759,-522.73,0.00011943,2]
[353194712,1739640654771,-500.0,0.00011943,2]
[353194713,1739640654781,-500.0,0.00011943,2]
[353194714,1739640654791,-500.0,0.00011943,2]
[353194715,1739640654802,-500.0,0.00011943,2]
[353194716,1739640654812,-500.0,0.00011943,2]
[353194717,1739640654822,-574.9,0.00011943,2]
[353194718,1739640654832,-500.0,0.00011943,2]
[353194719,1739640654842,-500.0,0.00011943,2]
[353194720,1739640654852,-500.0,0.00011943,2]
[353194721,1739640654863,-500.0,0.00011943,2]
[353194722,1739640654872,-500.0,0.00011943,2]
[353194723,1739640654881,-488.24,0.00011943,2]
[353194724,1739640654890,-500.0,0.00011943,2]
[353194725,1739640654900,-500.0,0.00011943,2]
[353194726,1739640654909,-500.0,0.00011943,2]
[353194727,1739640654919,-500.0,0.00011943,2]
[353194728,1739640654928,-1073.26,0.00011943,2]
[353194729,1739640654937,-702.58,0.00011943,2]
[353194730,1739640654947,-500.0,0.00011943,2]
[353194731,1739640654956,-749.99,0.00011943,2]
[353194732,1739640654966,-500.0,0.00011943,2]
[353194733,1739640654975,-500.0,0.00011943,2]